fUSD/lending_fUSD_20260502
["ID","MTS","AMOUNT","RATE_DAILY","PERIOD"]
[421458126,1777702241000,-2219.64881541,0.00028596,2]
[421458121,1777702241000,-430.0,0.00028596,2]
[421458123,1777702241000,-430.0,0.00028596,2]
[421458128,1777702241000,-202.06,0.00028634,2]
[421458150,1777702241000,-166.63,0.0002897,2]
[421458140,1777702241000,-180.6,0.00028823,2]
[421458141,1777702241000,-202.06,0.00028823,2]
[421458132,1777702241000,-202.06,0.00028697,30]
[421458131,1777702241000,-180.6,0.00028697,30]
[421458129,1777702241000,-180.6,0.00028665,7]
[421458136,1777702241000,-180.6,0.0002876,7]
[421458133,1777702241000,-180.6,0.00028728,2]
[421458130,1777702241000,-202.06,0.00028665,7]
[421458134,1777702241000,-202.06,0.00028728,2]
[421458138,1777702241000,-180.6,0.00028791,30]
[421458135,1777702241000,-741.0,0.00028739,3]
[421458139,1777702241000,-202.06,0.00028791,30]
[421458142,1777702241000,-180.6,0.00028854,7]
[421458154,1777702241000,-202.06,0.00029012,2]
[421458152,1777702241000,-202.06,0.0002898,30]
[421458144,1777702241000,-180.6,0.00028886,30]
[421458143,1777702241000,-202.06,0.00028854,7]
[421458146,1777702241000,-180.6,0.00028917,2]
[421458145,1777702241000,-202.06,0.00028886,30]
[421458153,1777702241000,-180.6,0.00029012,2]
[421458137,1777702241000,-202.06,0.0002876,7]
[421458180,1777702242000,-1718.15,0.00029999,2]
[421458182,1777702242000,-458.87313864,0.0003,2]
[421458181,1777702242000,-120058.80495744,0.0003,2]
[421458196,1777702243000,-2619.9222051,0.0003,2]
[421458197,1777702243000,-973.1653515,0.0003,2]
[421458194,1777702243000,-202.07,0.00028665,7]
[421458195,1777702243000,-224.29809262,0.0003,2]
[421458193,1777702243000,-202.07,0.00028634,2]
[421458201,1777702246000,-202.07,0.00028697,30]
[421458202,1777702246000,-202.07,0.00028728,2]
[421458203,1777702246000,-143.88986391,0.0002876,7]
[421458204,1777702246000,-58.18013609,0.0002876,7]
[421458205,1777702246000,-202.07,0.00028791,30]
[421458208,1777702246000,-202.07,0.00028886,30]
[421458206,1777702246000,-202.07,0.00028823,2]
[421458209,1777702246000,-202.07,0.00028917,2]
[421458207,1777702246000,-202.07,0.00028854,7]
[421458217,1777702246000,-168.38,0.0003,2]
[421458212,1777702246000,-202.07,0.0002898,30]
[421458219,1777702246000,-755.0,0.0003,10]
[421458220,1777702246000,-854.71709077,0.0003,10]
[421458218,1777702246000,-21430.41652322,0.0003,2]
[421458216,1777702246000,-202.07,0.00029043,7]
[421458210,1777702246000,-140.95352483,0.00028949,7]
[421458214,1777702246000,-815.05352263,0.0003,2]
[421458211,1777702246000,-61.11647517,0.00028949,7]
[421458213,1777702246000,-202.07,0.00029012,2]
[421458215,1777702246000,-3743.09066726,0.0003,2]
[421458224,1777702450000,2000.0,0.00030137,120]
[421458225,1777702868000,300.0,0.0003,120]
[421458226,1777702885000,200.0,0.000284,120]
[421458227,1777702915000,300.0,0.0003,120]
[421458228,1777702934000,1000.0,0.0003,120]
[421458229,1777703004000,421.0,0.0003,120]
[421458230,1777703098000,4761.01390072,0.00030136,120]
[421458231,1777703148000,-541.11,0.000173,2]
[421458232,1777703148000,-1018.08150645,0.00020547,2]
[421458233,1777703163000,5000.0,0.00022602,120]
[421458234,1777703163000,2885.84201798,0.00020547,120]
[421458236,1777703224000,2942.65862251,0.00020547,120]
[421458235,1777703224000,5000.0,0.00022602,120]
[421458237,1777703228000,-388.00790527,0.00020547,2]
[421458238,1777703242000,188.74,0.00025485,120]
[421458239,1777703243000,188.74,0.00028316,120]
[421458255,1777703431000,-171.0,0.00022,2]
[421458261,1777703431000,-1200.0,0.00022601,2]
[421458257,1777703431000,-1275.39068896,0.00022,2]
[421458258,1777703431000,-150.0,0.00022365,2]
[421458262,1777703431000,-250.0,0.00022602,2]
[421458263,1777703431000,-300.71354292,0.00022602,30]
[421458267,1777703431000,-168.17473672,0.000227,2]
[421458271,1777703431000,-200.0,0.00023095,2]
[421458274,1777703431000,-800.0,0.000236,8]
[421458259,1777703431000,-173.68288793,0.00022407,2]
[421458268,1777703431000,-281.22016693,0.00022804,2]
[421458269,1777703431000,-166.4,0.00022969,2]
[421458272,1777703431000,-162.41759262,0.00023243,2]
[421458276,1777703431000,-1144.00605705,0.00023621,2]
[421458270,1777703431000,-171.0,0.00023,2]
[421458282,1777703431000,-18044.20035509,0.000237,2]
[421458252,1777703431000,-150.0,0.00021452,2]
[421458256,1777703431000,-300.0,0.00022,2]
[421458242,1777703431000,-488.77,0.000173,2]
[421458243,1777703431000,-171.0,0.0002,2]
[421458244,1777703431000,-348.40408928,0.00020547,2]
[421458247,1777703431000,-181.12135872,0.00020548,2]
[421458246,1777703431000,-447.17570424,0.00020547,2]
[421458254,1777703431000,-224.05607549,0.00021452,2]
[421458266,1777703431000,-188.74,0.00022653,2]
[421458251,1777703431000,-150.0,0.00021452,2]
[421458249,1777703431000,-419.0,0.000213,5]
[421458253,1777703431000,-150.0,0.00021452,2]
[421458250,1777703431000,-150.0,0.00021452,4]
[421458248,1777703431000,-171.0,0.00021,2]
[421458265,1777703431000,-502.59374922,0.00022602,2]
[421458260,1777703431000,-173.68288793,0.00022407,2]
[421458245,1777703431000,-453.0,0.00020547,2]
[421458278,1777703431000,-150.0,0.00023699,2]
[421458264,1777703431000,-300.0,0.00022602,2]
[421458286,1777703431000,-28824.67714491,0.000237,2]
[421458317,1777703431000,-500.0,0.00023799,2]
[421458309,1777703431000,-500.0,0.00023799,2]
[421458314,1777703431000,-500.0,0.00023799,2]
[421458312,1777703431000,-500.0,0.00023799,2]
[421458313,1777703431000,-500.0,0.00023799,2]
[421458318,1777703431000,-500.0,0.00023799,2]
[421458315,1777703431000,-500.0,0.00023799,2]
[421458319,1777703431000,-500.0,0.00023799,2]
[421458320,1777703431000,-500.0,0.00023799,2]
[421458323,1777703431000,-500.0,0.00023799,2]
[421458324,1777703431000,-500.0,0.00023799,2]
[421458322,1777703431000,-500.0,0.00023799,2]
[421458326,1777703431000,-500.0,0.00023799,2]
[421458280,1777703431000,-1700.0,0.000237,8]
[421458321,1777703431000,-379.11654779,0.00023799,2]
[421458305,1777703431000,-500.0,0.00023799,2]
[421458325,1777703431000,-500.0,0.00023799,2]
[421458316,1777703431000,-500.0,0.00023799,2]
[421458311,1777703431000,-500.0,0.00023799,2]
[421458296,1777703431000,-500.0,0.00023799,2]
[421458288,1777703431000,-9869.9469,0.00023752,2]
[421458302,1777703431000,-500.0,0.00023799,2]
[421458298,1777703431000,-500.0,0.00023799,2]
[421458303,1777703431000,-500.0,0.00023799,2]
[421458295,1777703431000,-153.09095857,0.00023799,2]
[421458300,1777703431000,-500.0,0.00023799,2]
[421458294,1777703431000,-330.64457673,0.00023753,2]
[421458290,1777703431000,-2324.38418276,0.00023753,2]
[421458292,1777703431000,-1241.45126401,0.00023753,2]
[421458304,1777703431000,-500.0,0.00023799,2]
[421458306,1777703431000,-500.0,0.00023799,2]
[421458307,1777703431000,-500.0,0.00023799,2]
[421458308,1777703431000,-500.0,0.00023799,2]
[421458301,1777703431000,-500.0,0.00023799,2]
[421458335,1777703432000,-250.0,0.00023799,2]
[421458333,1777703432000,-500.0,0.00023799,2]
[421458329,1777703432000,-500.0,0.00023799,2]
[421458334,1777703432000,-500.0,0.00023799,2]
[421458330,1777703432000,-500.0,0.00023799,2]
[421458331,1777703432000,-500.0,0.00023799,2]
[421458327,1777703432000,-500.0,0.00023799,2]
[421458328,1777703432000,-500.0,0.00023799,2]
[421458336,1777703432000,-500.0,0.00023799,2]
[421458332,1777703432000,-500.0,0.00023799,2]
[421458337,1777703432000,-500.0,0.00023799,2]
[421458341,1777703432000,-500.0,0.00023799,2]
[421458340,1777703432000,-500.0,0.00023799,2]
[421458339,1777703432000,-500.0,0.00023799,2]
[421458342,1777703432000,-500.0,0.00023799,2]
[421458343,1777703432000,-500.0,0.00023799,2]
[421458344,1777703432000,-500.0,0.00023799,2]
[421458345,1777703432000,-500.0,0.00023799,2]
[421458347,1777703432000,-500.0,0.00023799,2]
[421458349,1777703432000,-156376.16696447,0.000238,4]
[421458348,1777703432000,-500.0,0.00023799,2]
[421458346,1777703432000,-500.0,0.00023799,2]
[421458338,1777703432000,-500.0,0.00023799,2]
[421458358,1777703437000,-500.0,0.00023799,2]
[421458352,1777703437000,-500.0,0.00023799,2]
[421458354,1777703437000,-500.0,0.00023799,2]
[421458355,1777703437000,-283.84536185,0.00023799,2]
[421458357,1777703437000,-500.0,0.00023799,2]
[421458356,1777703437000,-48.50396354,0.00023799,2]
[421458350,1777703437000,-322.79140862,0.00023799,2]
[421458351,1777703437000,-500.0,0.00023799,2]
[421458353,1777703437000,-500.0,0.00023799,2]
[421458362,1777703437000,-65558.5438569,0.000238,4]
[421458360,1777703437000,-500.0,0.00023799,2]
[421458361,1777703437000,-500.0,0.00023799,2]
[421458366,1777703437000,-169.24096128,0.00023836,4]
[421458371,1777703437000,-155.0,0.00023851,2]
[421458370,1777703437000,-237.19324307,0.00023839,2]
[421458369,1777703437000,-151.0,0.00023839,2]
[421458367,1777703437000,-151.0,0.00023839,2]
[421458368,1777703437000,-151.0,0.00023839,2]
[421458364,1777703437000,-170.76113044,0.00023836,4]
[421458359,1777703437000,-238.4379979,0.00023799,2]
[421458363,1777703437000,-2600.0,0.000238,8]
[421458365,1777703437000,-253.32033168,0.00023836,4]
[421458418,1777703438000,-488.77,0.000259,2]
[421458453,1777703438000,-2291.97,0.00027397,10]
[421458423,1777703438000,-2324.38418275,0.00026258,2]
[421458421,1777703438000,-1241.45126399,0.00026008,2]
[421458437,1777703438000,-721.318,0.00026462,2]
[421458449,1777703438000,-1500.0,0.00027397,2]
[421458441,1777703438000,-166.4,0.0002676,2]
[421458439,1777703438000,-443.01,0.000267,7]
[421458447,1777703438000,-256.61030024,0.00027397,2]
[421458451,1777703438000,-300.0,0.00027397,2]
[421458460,1777703438000,-522.12,0.000274,7]
[421458442,1777703438000,-150.0,0.00027123,20]
[421458456,1777703438000,-3340.19,0.00027397,10]
[421458458,1777703438000,-2783.49,0.00027397,10]
[421458416,1777703438000,-541.11,0.000259,2]
[421458462,1777703438000,-8709.17,0.000274,7]
[421458464,1777703438000,-5059.79,0.000274,7]
[421458466,1777703438000,-151.0,0.000274,7]
[421458473,1777703438000,-151.0,0.000274,7]
[421458479,1777703438000,-151.0,0.000274,7]
[421458475,1777703438000,-151.0,0.000274,7]
[421458477,1777703438000,-151.0,0.000274,7]
[421458445,1777703438000,-1241.45126399,0.00027135,2]
[421458399,1777703438000,-179.05387529,0.00025,2]
[421458397,1777703438000,-1241.45126399,0.0002488,2]
[421458414,1777703438000,-17470.25249107,0.0002589,5]
[421458483,1777703438000,-758.0,0.00027721,10]
[421458372,1777703438000,-250.0,0.00023851,2]
[421458376,1777703438000,-151.0,0.00023853,2]
[421458373,1777703438000,-890705.0917,0.00023852,2]
[421458375,1777703438000,-151.0,0.00023853,2]
[421458374,1777703438000,-151.0,0.00023853,2]
[421458377,1777703438000,-151.0,0.00023853,2]
[421458378,1777703438000,-151.0,0.00023853,2]
[421458379,1777703438000,-151.0,0.00023853,2]
[421458388,1777703438000,-171.0,0.00024,2]
[421458403,1777703438000,-203.24859229,0.00025205,2]
[421458381,1777703438000,-2000.0,0.00023854,2]
[421458392,1777703438000,-150.0,0.00024658,2]
[421458382,1777703438000,-3500.0,0.000239,8]
[421458384,1777703438000,-443.01,0.000239,7]
[421458390,1777703438000,-150.0,0.000242,2]
[421458386,1777703438000,-166.4,0.00023917,2]
[421458394,1777703438000,-166.4,0.00024865,2]
[421458406,1777703438000,-2000.0,0.0002544,2]
[421458408,1777703438000,-5528.0,0.000257,5]
[421458401,1777703438000,-5528.0,0.00025,3]
[421458411,1777703438000,-166.4,0.00025812,2]
[421458380,1777703438000,-17425.022,0.00023854,2]
[421458481,1777703438000,-156.48870766,0.00027671,2]
[421458494,1777703438000,-541.11,0.000284,2]
[421458471,1777703438000,-151.0,0.000274,7]
[421458508,1777703438000,-172.75,0.00028757,7]
[421458512,1777703438000,-172.8,0.00028789,30]
[421458513,1777703438000,-172.75,0.00028821,2]
[421458510,1777703438000,-2324.38418275,0.00028762,2]
[421458514,1777703438000,-172.8,0.00028821,2]
[421458515,1777703438000,-330.64457672,0.00028827,2]
[421458516,1777703438000,-172.75,0.00028852,7]
[421458518,1777703438000,-172.75,0.00028884,30]
[421458519,1777703438000,-172.8,0.00028884,30]
[421458529,1777703438000,-172.8,0.00029042,7]
[421458520,1777703438000,-172.75,0.00028916,2]
[421458522,1777703438000,-172.75,0.00028947,7]
[421458527,1777703438000,-172.8,0.00029011,2]
[421458526,1777703438000,-172.75,0.00029011,2]
[421458528,1777703438000,-172.75,0.00029042,7]
[421458524,1777703438000,-172.75,0.00028979,30]
[421458523,1777703438000,-172.8,0.00028947,7]
[421458525,1777703438000,-172.8,0.00028979,30]
[421458531,1777703438000,-172.8,0.00029074,30]
[421458532,1777703438000,-172.75,0.00029106,2]
[421458530,1777703438000,-172.75,0.00029074,30]
[421458533,1777703438000,-172.8,0.00029106,2]
[421458469,1777703438000,-151.0,0.000274,7]
[421458509,1777703438000,-172.8,0.00028757,7]
[421458511,1777703438000,-172.75,0.00028789,30]
[421458521,1777703438000,-172.8,0.00028916,2]
[421458507,1777703438000,-172.8,0.00028726,2]
[421458484,1777703438000,-618.0,0.00027721,10]
[421458506,1777703438000,-172.75,0.00028726,2]
[421458486,1777703438000,-153.88,0.00028,2]
[421458489,1777703438000,-1000.0,0.0002801,2]
[421458488,1777703438000,-153.88,0.00028,2]
[421458487,1777703438000,-153.88,0.00028,2]
[421458490,1777703438000,-194.59,0.00028138,2]
[421458491,1777703438000,-5000.0,0.00028156,2]
[421458493,1777703438000,-1241.45126399,0.00028263,2]
[421458495,1777703438000,-488.77,0.000284,2]
[421458492,1777703438000,-172.296288,0.00028187,14]
[421458485,1777703438000,-153.88,0.00028,2]
[421458501,1777703438000,-172.75,0.00028662,7]
[421458502,1777703438000,-172.8,0.00028662,7]
[421458496,1777703438000,-1503.38,0.00028595,2]
[421458503,1777703438000,-172.75,0.00028694,30]
[421458505,1777703438000,-443.01,0.000287,7]
[421458504,1777703438000,-172.8,0.00028694,30]
[421458517,1777703438000,-172.8,0.00028852,7]
[421458500,1777703438000,-200.0,0.00028638,2]
[421458497,1777703438000,-2000.0,0.0002862,2]
[421458498,1777703438000,-172.75,0.00028631,2]
[421458499,1777703438000,-172.8,0.00028631,2]
[421458573,1777703439000,-19878.3538953,0.00029848,2]
[421458569,1777703439000,-250.0,0.00029562,13]
[421458578,1777703439000,-2598.7303118,0.00029848,2]
[421458575,1777703439000,-4477.2346667,0.00029848,2]
[421458580,1777703439000,-151.0,0.00029848,7]
[421458563,1777703439000,-151.0,0.000294,7]
[421458572,1777703439000,-3151.0852876,0.00029848,2]
[421458571,1777703439000,-7440.7221617,0.00029848,2]
[421458579,1777703439000,-151.0,0.00029848,7]
[421458568,1777703439000,-150.0,0.00029534,2]
[421458561,1777703439000,-151.0,0.000294,7]
[421458565,1777703439000,-151.0,0.000294,7]
[421458570,1777703439000,-21243.11,0.000296,14]
[421458574,1777703439000,-4238.522081,0.00029848,2]
[421458592,1777703439000,-299.0,0.00030404,5]
[421458576,1777703439000,-5196.2022597,0.00029848,2]
[421458581,1777703439000,-178.785628,0.00029848,7]
[421458583,1777703439000,-151.0,0.00029848,7]
[421458582,1777703439000,-151.0,0.00029848,7]
[421458593,1777703439000,-153.88,0.00030446,2]
[421458584,1777703439000,-261.622888,0.00029848,7]
[421458586,1777703439000,-1000.0,0.00029998,7]
[421458588,1777703439000,-151.55820066,0.0003,2]
[421458591,1777703439000,-151.0,0.00030137,3]
[421458587,1777703439000,-44.28290923,0.0003,10]
[421458589,1777703439000,-210.79316848,0.0003,2]
[421458590,1777703439000,-443.01,0.0003,7]
[421458585,1777703439000,-184.46,0.00029966,4]
[421458577,1777703439000,-12751.9932799,0.00029848,2]
[421458559,1777703439000,-983.61999279,0.000294,5]
[421458536,1777703439000,-172.75,0.00029169,30]
[421458564,1777703439000,-151.0,0.000294,7]
[421458596,1777703439000,-1241.45126399,0.00030518,2]
[421458537,1777703439000,-172.8,0.00029169,30]
[421458540,1777703439000,-172.8,0.00029201,2]
[421458538,1777703439000,-5059.79,0.000292,7]
[421458539,1777703439000,-172.75,0.00029201,2]
[421458534,1777703439000,-172.75,0.00029137,7]
[421458541,1777703439000,-172.91,0.00029232,7]
[421458535,1777703439000,-172.8,0.00029137,7]
[421458553,1777703439000,-1028.39262162,0.000294,5]
[421458542,1777703439000,-172.96,0.00029232,7]
[421458546,1777703439000,-200.0,0.000293,2]
[421458554,1777703439000,-1085.88838725,0.000294,5]
[421458544,1777703439000,-522.12,0.000293,7]
[421458562,1777703439000,-151.0,0.000294,7]
[421458543,1777703439000,-172.296289,0.00029251,14]
[421458545,1777703439000,-8709.17,0.000293,7]
[421458551,1777703439000,-1024.77413208,0.000294,5]
[421458552,1777703439000,-1122.79570146,0.000294,5]
[421458547,1777703439000,-1241.45126399,0.0002939,2]
[421458550,1777703439000,-1026.61162719,0.000294,5]
[421458549,1777703439000,-1066.18919396,0.000294,5]
[421458567,1777703439000,-410.044,0.00029534,23]
[421458556,1777703439000,-1128.67606337,0.000294,5]
[421458566,1777703439000,-166.331,0.00029534,23]
[421458558,1777703439000,-1051.15685403,0.000294,5]
[421458557,1777703439000,-1141.7535395,0.000294,5]
[421458555,1777703439000,-1092.34338759,0.000294,5]
[421458560,1777703439000,-151.0,0.000294,7]
[421458548,1777703439000,-1068.59777736,0.000294,5]
[421458598,1777703439000,-1215.49642839,0.00030617,7]
[421458657,1777703439000,-1000.0,0.00031903,2]
[421458595,1777703439000,-732.85118466,0.00030456,2]
[421458633,1777703439000,-2324.38418275,0.00031267,2]
[421458632,1777703439000,-350.0,0.00031248,9]
[421458637,1777703439000,-726.0,0.00031523,5]
[421458636,1777703439000,-867.0,0.00031523,5]
[421458648,1777703439000,-300.0,0.00031773,5]
[421458647,1777703439000,-400.7887018,0.00031672,60]
[421458640,1777703439000,-2007.2156,0.0003158,21]
[421458638,1777703439000,-2007.21559,0.0003158,21]
[421458644,1777703439000,-810.52014367,0.000316,2]
[421458641,1777703439000,-2007.21559,0.0003158,21]
[421458642,1777703439000,-810.52014369,0.000316,2]
[421458639,1777703439000,-2007.21559,0.0003158,21]
[421458643,1777703439000,-810.52014367,0.000316,2]
[421458634,1777703439000,-1503.38,0.00031289,2]
[421458646,1777703439000,-157.0974485,0.00031672,60]
[421458650,1777703439000,-2000.0,0.000318,2]
[421458649,1777703439000,-21243.11,0.000318,14]
[421458660,1777703439000,-1000.0,0.00031903,2]
[421458654,1777703439000,-522.12,0.000319,7]
[421458652,1777703439000,-8105.0,0.00031801,120]
[421458651,1777703439000,-971.0,0.00031801,120]
[421458659,1777703439000,-1000.0,0.00031903,2]
[421458656,1777703439000,-1000.0,0.00031903,2]
[421458653,1777703439000,-156.0,0.00031801,120]
[421458655,1777703439000,-8709.17,0.000319,7]
[421458658,1777703439000,-1000.0,0.00031903,2]
[421458662,1777703439000,-1000.0,0.00031903,2]
[421458594,1777703439000,-578.20924308,0.00030456,2]
[421458645,1777703439000,-1241.45126399,0.00031645,2]
[421458628,1777703439000,-158.0,0.00031125,30]
[421458661,1777703439000,-1000.0,0.00031903,2]
[421458630,1777703439000,-171.0,0.00031125,30]
[421458631,1777703439000,-188.74,0.00031148,120]
[421458600,1777703439000,-164.95,0.00030799,2]
[421458597,1777703439000,-5059.79,0.000306,7]
[421458605,1777703439000,-151.0,0.000308,7]
[421458602,1777703439000,-522.12,0.000308,7]
[421458603,1777703439000,-8709.17,0.000308,7]
[421458604,1777703439000,-21243.11,0.000308,14]
[421458606,1777703439000,-151.0,0.000308,7]
[421458601,1777703439000,-164.95,0.00030799,2]
[421458608,1777703439000,-164.95,0.00030801,2]
[421458607,1777703439000,-151.0,0.000308,7]
[421458620,1777703439000,-159.0,0.00031122,30]
[421458621,1777703439000,-154.0,0.00031122,30]
[421458618,1777703439000,-7745.0,0.00031,2]
[421458599,1777703439000,-152.0,0.00030659,4]
[421458611,1777703439000,-164.95,0.00030803,2]
[421458629,1777703439000,-151.0,0.00031125,30]
[421458627,1777703439000,-157.0,0.00031125,30]
[421458626,1777703439000,-153.0,0.00031125,30]
[421458624,1777703439000,-161.0,0.00031125,30]
[421458619,1777703439000,-150.0,0.00031011,2]
[421458625,1777703439000,-151.0,0.00031125,30]
[421458635,1777703439000,-300.0,0.0003133,2]
[421458614,1777703439000,-275.45,0.00030966,4]
[421458617,1777703439000,-163.62,0.00031,120]
[421458623,1777703439000,-154.0,0.00031125,30]
[421458610,1777703439000,-164.95,0.00030803,2]
[421458609,1777703439000,-164.95,0.00030801,2]
[421458622,1777703439000,-154.0,0.00031125,30]
[421458616,1777703439000,-10000.0,0.00031,7]
[421458705,1777703440000,-21243.11,0.000327,14]
[421458703,1777703440000,-150.0,0.00032562,2]
[421458701,1777703440000,-516.91084149,0.0003245,2]
[421458708,1777703440000,-181.80520197,0.00032777,2]
[421458699,1777703440000,-500.0,0.00032329,21]
[421458693,1777703440000,-151.0,0.00032125,30]
[421458702,1777703440000,-2752.80895865,0.00032476,2]
[421458700,1777703440000,-583.54402289,0.0003243,2]
[421458697,1777703440000,-2752.80895865,0.00032321,2]
[421458698,1777703440000,-500.0,0.00032329,21]
[421458691,1777703440000,-151.0,0.00032125,30]
[421458707,1777703440000,-1241.45126399,0.00032773,2]
[421458704,1777703440000,-600.0,0.00032595,5]
[421458721,1777703440000,-1501.374153,0.00032877,7]
[421458709,1777703440000,-2752.80895865,0.00032859,2]
[421458711,1777703440000,-151.0,0.00032877,7]
[421458722,1777703440000,-1501.374153,0.00032877,7]
[421458710,1777703440000,-151.0,0.00032877,7]
[421458713,1777703440000,-151.0,0.00032877,7]
[421458716,1777703440000,-1501.374153,0.00032877,7]
[421458715,1777703440000,-297.213826,0.00032877,7]
[421458712,1777703440000,-151.0,0.00032877,7]
[421458719,1777703440000,-1501.374153,0.00032877,7]
[421458717,1777703440000,-1501.374153,0.00032877,7]
[421458720,1777703440000,-1501.374153,0.00032877,7]
[421458718,1777703440000,-1501.374153,0.00032877,7]
[421458694,1777703440000,-171.0,0.00032125,30]
[421458706,1777703440000,-2011.0,0.000327,7]
[421458692,1777703440000,-157.0,0.00032125,30]
[421458676,1777703440000,-1034.35067683,0.00031903,2]
[421458695,1777703440000,-152.0,0.00032289,5]
[421458663,1777703440000,-1000.0,0.00031903,2]
[421458664,1777703440000,-1000.0,0.00031903,2]
[421458665,1777703440000,-1000.0,0.00031903,2]
[421458671,1777703440000,-1000.0,0.00031903,2]
[421458669,1777703440000,-1000.0,0.00031903,2]
[421458667,1777703440000,-1000.0,0.00031903,2]
[421458670,1777703440000,-1000.0,0.00031903,2]
[421458666,1777703440000,-1000.0,0.00031903,2]
[421458668,1777703440000,-1000.0,0.00031903,2]
[421458674,1777703440000,-1000.0,0.00031903,2]
[421458714,1777703440000,-151.0,0.00032877,7]
[421458679,1777703440000,-313.99277232,0.00032,120]
[421458680,1777703440000,-188.31669082,0.00032,120]
[421458685,1777703440000,-541.11,0.000321,2]
[421458683,1777703440000,-5059.79,0.00032,7]
[421458672,1777703440000,-1000.0,0.00031903,2]
[421458678,1777703440000,-2007.2156,0.00031903,24]
[421458675,1777703440000,-1000.0,0.00031903,2]
[421458682,1777703440000,-2000.00000009,0.00032,120]
[421458673,1777703440000,-1000.0,0.00031903,2]
[421458681,1777703440000,-905.89293008,0.00032,14]
[421458684,1777703440000,-151.0,0.00032088,3]
[421458696,1777703440000,-947.96210764,0.00032301,2]
[421458687,1777703440000,-159.0,0.00032122,30]
[421458690,1777703440000,-161.0,0.00032125,30]
[421458689,1777703440000,-154.0,0.00032125,30]
[421458688,1777703440000,-154.0,0.00032125,30]
[421458686,1777703440000,-488.77,0.000321,2]
[421458677,1777703440000,-2007.21559,0.00031903,24]
[421458725,1777703440000,-1501.374153,0.00032877,7]
[421458775,1777703440000,-500.0,0.00033698,2]
[421458732,1777703440000,-1501.374153,0.00032877,7]
[421458751,1777703440000,-2845.3543027,0.00033056,2]
[421458756,1777703440000,-151.0,0.00033125,30]
[421458760,1777703440000,-2752.80895865,0.0003324,2]
[421458761,1777703440000,-3126.93060326,0.000333,2]
[421458771,1777703440000,-600.0,0.00033698,2]
[421458766,1777703440000,-500.0,0.00033698,2]
[421458768,1777703440000,-500.0,0.00033698,2]
[421458764,1777703440000,-500.0,0.00033698,2]
[421458770,1777703440000,-500.0,0.00033698,2]
[421458765,1777703440000,-500.0,0.00033698,2]
[421458773,1777703440000,-500.0,0.00033698,120]
[421458762,1777703440000,-900.0,0.00033416,5]
[421458763,1777703440000,-443.01,0.000335,7]
[421458755,1777703440000,-161.0,0.00033125,30]
[421458772,1777703440000,-235.91544102,0.00033698,2]
[421458769,1777703440000,-500.0,0.00033698,2]
[421458776,1777703440000,-500.0,0.00033698,2]
[421458774,1777703440000,-517.35364098,0.00033698,120]
[421458785,1777703440000,-300.0,0.00033698,2]
[421458777,1777703440000,-500.0,0.00033698,2]
[421458779,1777703440000,-500.0,0.00033698,2]
[421458780,1777703440000,-500.0,0.00033698,2]
[421458783,1777703440000,-300.0,0.00033698,2]
[421458782,1777703440000,-300.0,0.00033698,2]